fUSD/lending_fUSD_20250702
["ID","MTS","AMOUNT","RATE_DAILY","PERIOD"]
[369058328,1751447454146,-151.0,0.00016712,2]
[369058329,1751447454156,-161.793787,0.00016712,2]
[369058330,1751447454165,-151.0,0.00016712,2]
[369058331,1751447454175,-151.0,0.00016712,2]
[369058332,1751447454184,-158.519669,0.00016712,2]
[369058333,1751447454197,-164.379698,0.00016712,2]
[369058334,1751447454207,-164.379698,0.00016712,2]
[369058335,1751447454217,-164.379698,0.00016712,2]
[369058336,1751447454227,-164.379698,0.00016712,2]
[369058337,1751447454238,-164.379698,0.00016712,2]
[369058338,1751447454250,-151.0,0.00016712,2]
[369058339,1751447454261,-164.379698,0.00016712,2]
[369058340,1751447454271,-151.0,0.00016712,2]
[369058341,1751447454280,-151.0,0.00016712,2]
[369058342,1751447454289,-164.379698,0.00016712,2]
[369058343,1751447454299,-164.379698,0.00016712,2]
[369058344,1751447454309,-151.0,0.00016712,2]
[369058345,1751447454319,-151.0,0.00016712,2]
[369058346,1751447454328,-151.0,0.00016712,2]
[369058347,1751447454337,-155.116666,0.00016712,2]
[369058348,1751447454346,-151.0,0.00016712,2]
[369058349,1751447454356,-151.0,0.00016712,2]
[369058350,1751447454366,-151.0,0.00016712,2]
[369058351,1751447454375,-215.46196,0.00016712,2]
[369058352,1751447454385,-215.46196,0.00016712,2]
[369058353,1751447454394,-215.46196,0.00016712,2]
[369058354,1751447454404,-160.441034,0.00016712,2]
[369058355,1751447454415,-215.46196,0.00016712,2]
[369058356,1751447454424,-215.46196,0.00016712,2]
[369058357,1751447454436,-215.46196,0.00016712,2]
[369058358,1751447454445,-151.0,0.00016712,2]
[369058359,1751447454456,-151.0,0.00016712,2]
[369058360,1751447454466,-188.668728,0.00016712,2]
[369058361,1751447454476,-156.315558,0.00016712,2]
[369058362,1751447454487,-151.0,0.00016712,2]
[369058363,1751447454498,-151.0,0.00016712,2]
[369058364,1751447454507,-151.0,0.00016712,2]
[369058365,1751447454517,-151.0,0.00016712,2]
[369058366,1751447454527,-151.0,0.00016712,2]
[369058367,1751447454536,-151.0,0.00016712,2]
[369058368,1751447454546,-151.0,0.00016712,2]
[369058369,1751447454556,-151.0,0.00016712,2]
[369058370,1751447454566,-151.0,0.00016712,2]
[369058371,1751447454575,-151.0,0.00016712,2]
[369058372,1751447454584,-300.041276,0.00016712,2]
[369058373,1751447454594,-152.551001,0.00016712,2]
[369058374,1751447454603,-151.0,0.00016712,2]
[369058375,1751447454613,-156.839501,0.00016712,2]
[369058376,1751447454623,-151.0,0.00016712,2]
[369058377,1751447454632,-155.573087,0.00016712,2]
[369058378,1751447454641,-159.008139,0.00016712,2]
[369058379,1751447454651,-1361.192466,0.00016712,2]
[369058380,1751447454660,-1361.192466,0.00016712,2]
[369058381,1751447454670,-1361.192466,0.00016712,2]
[369058382,1751447454680,-1361.192466,0.00016712,2]
[369058383,1751447454690,-151.0,0.00016712,2]
[369058384,1751447454700,-151.0,0.00016712,2]
[369058385,1751447454710,-151.0,0.00016712,2]
[369058386,1751447454722,-151.0,0.00016712,2]
[369058387,1751447454731,-151.0,0.00016712,2]
[369058388,1751447454741,-151.0,0.00016712,2]
[369058389,1751447454751,-151.0,0.00016712,2]
[369058390,1751447454762,-158.596076,0.00016712,2]
[369058391,1751447454772,-151.0,0.00016712,2]
[369058392,1751447454781,-153.792871,0.00016712,2]
[369058393,1751447454791,-151.0,0.00016712,2]
[369058394,1751447454800,-224.99,0.00016712,2]
[369058395,1751447454810,-151.0,0.00016723,2]
[369058396,1751447454819,-262.45699,0.00016723,2]
[369058397,1751447454828,-151.0,0.00016723,2]
[369058398,1751447454838,-151.175951,0.00016723,2]
[369058399,1751447454847,-340.217869,0.00016723,3]
[369058400,1751447454856,-151.0,0.00016723,2]
[369058401,1751447454866,-175.509291,0.00016723,2]
[369058402,1751447454875,-173.5678,0.00016723,2]
[369058403,1751447454886,-699.358155,0.00016723,2]
[369058404,1751447454895,-699.358155,0.00016723,2]
[369058405,1751447454904,-151.0,0.00016725,2]
[369058406,1751447454913,-199.361757,0.00016725,2]
[369058407,1751447454922,-151.0,0.00016725,2]
[369058408,1751447454931,-252.881948,0.00016725,2]
[369058409,1751447454941,-500.0,0.00016725,2]
[369058410,1751447454950,-224.86,0.00016725,2]
[369058411,1751447454960,-1069.6,0.00016729,2]
[369058412,1751447454969,-500.0,0.00016729,2]
[369058413,1751447454979,-172009.23191493,0.0001673,2]
[369058414,1751447454988,-3853.44999999,0.0001673,2]
[369058415,1751447454997,-151.0,0.0001673,2]
[369058416,1751447455006,-151.0,0.0001673,2]
[369058417,1751447455016,-151.0,0.0001673,2]
[369058418,1751447455025,-151.0,0.0001673,2]
[369058419,1751447455034,-699.358155,0.0001673,2]
[369058420,1751447455043,-699.35815,0.0001673,2]
[369058421,1751447455053,-151.0,0.0001673,2]
[369058422,1751447455062,-151.0,0.0001673,2]
[369058423,1751447455072,-236.528361,0.0001673,2]
[369058424,1751447455081,-2155.539602,0.0001673,2]
[369058425,1751447455090,-2155.539607,0.0001673,2]
[369058426,1751447455100,-151.0,0.0001673,2]
[369058427,1751447455109,-151.0,0.0001673,2]
[369058428,1751447455118,-151.0,0.0001673,2]
[369058429,1751447455128,-151.0,0.0001673,2]
[369058430,1751447455137,-151.0,0.0001673,2]
[369058431,1751447455146,-151.0,0.0001673,2]
[369058432,1751447455155,-215.46196,0.0001673,2]
[369058433,1751447455165,-215.46196,0.0001673,2]
[369058434,1751447455175,-151.0,0.0001673,2]
[369058435,1751447455184,-1361.192466,0.0001673,2]
[369058436,1751447455198,-1361.192466,0.0001673,2]
[369058437,1751447455207,-151.0,0.0001673,2]
[369058438,1751447455216,-151.0,0.0001673,2]
[369058439,1751447455226,-151.0,0.0001673,2]
[369058440,1751447455235,-168.872517,0.0001673,2]
[369058441,1751447455245,-179.079197,0.0001673,2]
[369058442,1751447455255,-151.0,0.0001673,2]
[369058443,1751447455265,-338.437699,0.0001673,2]
[369058444,1751447455275,-338.437699,0.0001673,2]
[369058445,1751447455285,-151.0,0.0001673,2]
[369058446,1751447455481,-257.827412,0.0001673,2]
[369058447,1751447455491,-151.0,0.0001673,2]
[369058448,1751447455501,-500.0,0.00016772,2]
[369058449,1751447455511,-620.48586492,0.00016773,2]
[369058450,1751447455521,-500.0,0.00016773,2]
[369058451,1751447455531,-161.85973123,0.00016773,2]
[369058452,1751447455540,-504.22550431,0.00016773,2]
[369058453,1751447455549,-500.0,0.00016773,2]
[369058454,1751447455559,-500.0,0.00016773,2]
[369058455,1751447455568,-500.0,0.00016773,2]
[369058456,1751447455578,-354.35649874,0.00016773,2]
[369058457,1751447455587,-159.77351665,0.00016773,2]
[369058458,1751447455596,-500.1342927,0.00016773,2]
[369058459,1751447455605,-500.0,0.00016773,2]
[369058460,1751447455615,-159.77424301,0.00016773,2]
[369058461,1751447455624,-164.76895447,0.00016773,2]
[369058462,1751447455633,-159.8132969,0.00016773,2]
[369058463,1751447455643,-154.08364763,0.00016773,2]
[369058464,1751447455652,-500.0,0.00016773,2]
[369058465,1751447455662,-500.0,0.00016773,2]
[369058466,1751447455671,-159.77433919,0.00016773,2]
[369058467,1751447455681,-500.0,0.00016773,2]
[369058468,1751447455690,-506.98175443,0.00016773,2]
[369058469,1751447455699,-500.0,0.00016773,2]
[369058470,1751447455709,-517.527155,0.00016773,2]
[369058471,1751447455718,-500.18866986,0.00016773,2]
[369058472,1751447455728,-500.0,0.00016773,2]
[369058473,1751447455737,-178.40576489,0.00016773,2]
[369058474,1751447455749,-500.0,0.00016773,2]
[369058475,1751447455759,-408.06454149,0.00016773,2]
[369058476,1751447455768,-500.0,0.00016773,2]
[369058477,1751447455778,-173.5678,0.00016773,2]
[369058478,1751447455788,-300.0,0.00016792,2]
[369058479,1751447455797,-732.75,0.00016799,2]
[369058480,1751447455807,-622.66,0.00016799,2]
[369058481,1751447455816,-330.8949183,0.000168,2]
[369058482,1751447455824,-300.0,0.000168,6]
[369058483,1751447455834,-327.02840173,0.00016809,2]
[369058484,1751447455842,-490.0,0.00016809,2]
[369058485,1751447455852,-490.0,0.00016809,2]
[369058486,1751447455861,-493.32535297,0.00016809,2]
[369058487,1751447455870,-490.0,0.00016809,2]
[369058488,1751447455879,-490.0,0.00016809,2]
[369058489,1751447455889,-151.0,0.00016815,2]
[369058490,1751447455898,-151.0,0.00016815,2]
[369058491,1751447455908,-164.379698,0.00016815,2]
[369058492,1751447455918,-164.379698,0.00016815,2]
[369058493,1751447455928,-151.0,0.00016815,2]
[369058494,1751447455938,-151.0,0.00016816,2]
[369058495,1751447455947,-208.9,0.00016819,2]
[369058496,1751447455957,-150.0,0.00016877,2]
[369058497,1751447455966,-150.0,0.00016895,2]
[369058498,1751447455975,-150.0,0.00016895,2]
[369058499,1751447455987,-150.704,0.00016895,2]
[369058500,1751447455996,-3341.0,0.00016895,2]
[369058501,1751447456005,-949.0,0.00016895,2]
[369058502,1751447456015,-1003.19,0.00016895,2]
[369058503,1751447456025,-931.0,0.00016895,2]
[369058504,1751447456035,-560.0,0.00016895,2]
[369058505,1751447456044,-887.0,0.00016895,2]
[369058506,1751447456055,-7151.0,0.00016895,2]
[369058507,1751447456065,-4107.0,0.00016895,2]
[369058508,1751447456074,-858.0,0.00016895,2]
[369058509,1751447456084,-298.646,0.00016895,2]
[369058510,1751447456095,-151.0,0.00016895,2]
[369058511,1751447456105,-151.0,0.00016895,2]
[369058512,1751447456115,-700.0,0.000169,6]
[369058513,1751447456125,-1069.6,0.00016935,2]
[369058514,1751447456134,-500.0,0.00016935,2]
[369058515,1751447456143,-1263.55969842,0.00016941,2]
[369058516,1751447456153,-151.0,0.00016947,2]
[369058517,1751447456163,-151.0,0.00016947,2]
[369058518,1751447456172,-151.0,0.00016947,2]
[369058519,1751447456182,-226.852367,0.0001696,2]
[369058520,1751447456191,-155.595329,0.0001696,2]
[369058521,1751447456205,-156.259149,0.0001696,2]
[369058522,1751447456215,-500.0,0.00016973,2]
[369058523,1751447456224,-500.0,0.00016973,2]
[369058524,1751447456233,-500.0,0.00016973,2]
[369058525,1751447456244,-166.57226627,0.00016973,2]
[369058526,1751447456253,-208.9,0.00016984,2]
[369058527,1751447456262,-1069.6,0.00016985,2]
[369058528,1751447456274,-1069.6,0.00016985,2]
[369058529,1751447456284,-1069.6,0.00016985,2]
[369058530,1751447456293,-300.0,0.00016985,2]
[369058531,1751447456302,-300.0,0.00016985,2]
[369058532,1751447456311,-500.0,0.00016985,2]
[369058533,1751447456321,-500.0,0.00016985,2]
[369058534,1751447456330,-500.0,0.00016985,2]
[369058535,1751447456339,-500.0,0.00016985,2]
[369058536,1751447456348,-500.0,0.00016985,2]
[369058537,1751447456359,-500.0,0.00016985,2]
[369058538,1751447456368,-593.88,0.00016985,2]
[369058539,1751447456377,-732.75,0.00016985,2]
[369058540,1751447456386,-732.75,0.00016985,2]
[369058541,1751447456396,-732.75,0.00016985,2]
[369058542,1751447456405,-622.66,0.00016985,2]
[369058543,1751447456415,-622.66,0.00016985,2]
[369058544,1751447456424,-622.66,0.00016985,2]
[369058545,1751447456433,-216.58290578,0.00016986,2]
[369058546,1751447456442,-500.0,0.00016986,2]
[369058547,1751447456451,-1615.0,0.00016986,2]
[369058548,1751447456460,-643.0,0.00016986,2]
[369058549,1751447456470,-150.0,0.00016986,2]
[369058550,1751447456479,-500.0,0.00016986,2]
[369058551,1751447456488,-150.0,0.00016986,2]
[369058552,1751447456498,-500.0,0.00016986,2]
[369058553,1751447456507,-151.0,0.00016986,2]
[369058554,1751447456516,-151.0,0.00016986,2]
[369058555,1751447456526,-151.0,0.00016986,2]
[369058556,1751447456536,-151.0,0.00016986,2]
[369058557,1751447456546,-151.0,0.00016986,2]
[369058558,1751447456555,-151.0,0.00016986,2]
[369058559,1751447456564,-151.0,0.00016986,2]
[369058560,1751447456574,-151.0,0.00016986,2]
[369058561,1751447456584,-151.0,0.00016986,2]
[369058562,1751447456593,-151.0,0.00016986,2]
[369058563,1751447456603,-151.0,0.00016986,2]
[369058564,1751447456612,-151.0,0.00016986,2]
[369058565,1751447456622,-490.0,0.00016986,2]
[369058566,1751447456631,-490.0,0.00016986,2]
[369058567,1751447456640,-490.0,0.00016986,2]
[369058568,1751447456650,-173.567808,0.00016986,2]
[369058569,1751447456659,-282.89561858,0.00016986,2]
[369058570,1751447456669,-490.0,0.00016986,2]
[369058571,1751447456679,-490.0,0.00016986,2]
[369058572,1751447456688,-490.0,0.00016986,2]
[369058573,1751447456698,-490.0,0.00016986,2]
[369058574,1751447456708,-490.0,0.00016986,2]
[369058575,1751447456718,-490.0,0.00016986,2]
[369058576,1751447456727,-490.0,0.00016986,2]
[369058577,1751447456736,-490.0,0.00016986,2]
[369058578,1751447456746,-630.23568854,0.00016986,2]
[369058579,1751447456756,-490.0,0.00016986,2]
[369058580,1751447456766,-490.0,0.00016986,2]
[369058581,1751447456775,-490.0,0.00016986,2]
[369058582,1751447456784,-500.0,0.00016986,2]
[369058583,1751447456794,-490.0,0.00016986,2]
[369058584,1751447456805,-195.51776,0.00016986,2]
[369058585,1751447456814,-620.52,0.00016986,2]
[369058586,1751447456823,-490.0,0.00016986,2]
[369058587,1751447456833,-490.0,0.00016986,2]
[369058588,1751447456842,-151.0,0.00016986,2]
[369058589,1751447456852,-490.0,0.00016986,2]
[369058590,1751447456861,-151.0,0.00016986,2]
[369058591,1751447456870,-490.0,0.00016986,2]
[369058592,1751447456879,-490.0,0.00016986,2]
[369058593,1751447456888,-490.0,0.00016986,2]
[369058594,1751447456898,-490.0,0.00016986,2]
[369058595,1751447456907,-490.0,0.00016986,2]
[369058596,1751447456916,-490.0,0.00016986,2]
[369058597,1751447456925,-490.0,0.00016986,2]
[369058598,1751447456934,-490.0,0.00016986,2]
[369058599,1751447456944,-490.0,0.00016986,2]
[369058600,1751447456953,-490.0,0.00016986,2]
[369058601,1751447456962,-490.0,0.00016986,2]
[369058602,1751447456971,-490.0,0.00016986,2]
[369058603,1751447456980,-490.0,0.00016986,2]
[369058604,1751447456989,-490.0,0.00016986,2]
[369058605,1751447456998,-490.0,0.00016986,2]
[369058606,1751447457008,-832.75,0.00016986,2]
[369058607,1751447457017,-490.0,0.00016986,2]
[369058608,1751447457027,-490.0,0.00016986,2]
[369058609,1751447457036,-490.0,0.00016986,2]
[369058610,1751447457045,-151.0,0.00016986,2]
[369058611,1751447457055,-151.0,0.00016986,2]
[369058612,1751447457065,-151.0,0.00016986,2]
[369058613,1751447457075,-221.549687,0.00016986,2]
[369058614,1751447457085,-490.0,0.00016986,2]
[369058615,1751447457095,-490.0,0.00016986,2]
[369058616,1751447457104,-490.0,0.00016986,2]
[369058617,1751447457113,-490.0,0.00016986,2]
[369058618,1751447457123,-831.02,0.00016986,2]
[369058619,1751447457339,-490.0,0.00016986,2]
[369058620,1751447457349,-490.0,0.00016986,2]
[369058621,1751447457358,-490.0,0.00016986,2]
[369058622,1751447457367,-490.0,0.00016986,2]
[369058623,1751447457376,-151.0,0.00016986,2]
[369058624,1751447457385,-151.0,0.00016986,2]
[369058625,1751447457394,-151.0,0.00016986,2]
[369058626,1751447457403,-151.0,0.00016986,2]
[369058627,1751447457414,-151.0,0.00016986,2]
[369058628,1751447457424,-151.0,0.00016986,2]
[369058629,1751447457433,-151.0,0.00016986,2]
[369058630,1751447457443,-151.0,0.00016986,2]
[369058631,1751447457452,-151.0,0.00016986,2]
[369058632,1751447457462,-164.379698,0.00016986,2]
[369058633,1751447457474,-164.379698,0.00016986,2]
[369058634,1751447457484,-164.379698,0.00016986,2]
[369058635,1751447457494,-151.0,0.00016986,2]
[369058636,1751447457506,-227.698776,0.00016986,2]
[369058637,1751447457515,-164.379698,0.00016986,2]
[369058638,1751447457524,-164.379698,0.00016986,2]
[369058639,1751447457534,-164.379698,0.00016986,2]
[369058640,1751447457543,-151.0,0.00016986,2]
[369058641,1751447457555,-151.0,0.00016986,2]
[369058642,1751447457566,-151.0,0.00016986,2]
[369058643,1751447457575,-215.46196,0.00016986,2]
[369058644,1751447457585,-215.46196,0.00016986,2]
[369058645,1751447457595,-215.46196,0.00016986,2]
[369058646,1751447457605,-215.46196,0.00016986,2]
[369058647,1751447457614,-215.46196,0.00016986,2]
[369058648,1751447457624,-215.46196,0.00016986,2]
[369058649,1751447457634,-151.0,0.00016986,2]
[369058650,1751447457643,-151.0,0.00016986,2]
[369058651,1751447457653,-151.0,0.00016986,2]
[369058652,1751447457662,-151.0,0.00016986,2]
[369058653,1751447457672,-151.0,0.00016986,2]
[369058654,1751447457681,-151.0,0.00016986,2]
[369058655,1751447457692,-1361.192466,0.00016986,2]
[369058656,1751447457702,-1361.192466,0.00016986,2]
[369058657,1751447457711,-151.0,0.00016986,2]
[369058658,1751447457721,-151.0,0.00016986,2]
[369058659,1751447457730,-169.520028,0.00016986,2]
[369058660,1751447457740,-338.437699,0.00016986,2]
[369058661,1751447457749,-338.437699,0.00016986,2]
[369058662,1751447457759,-252.2985,0.00016986,2]
[369058663,1751447457768,-151.0,0.00016986,2]
[369058664,1751447457778,-15772.65652979,0.00017,2]
[369058665,1751447458397,-1833.16958621,0.00017,2]
[369058666,1751447458406,-1743.48,0.00017,2]
[369058667,1751447458415,-1700.0,0.00017,7]
[369058668,1751447458423,-1058.1519139,0.00017,2]
[369058669,1751447458434,-300.0,0.00017,2]
[369058670,1751447458442,-166.942403,0.00017,2]
[369058671,1751447458451,-3430.582997,0.00017,2]
[369058672,1751447458460,-3430.582997,0.00017,2]
[369058673,1751447458469,-151.0,0.00017,2]
[369058674,1751447458478,-151.0,0.00017,2]
[369058675,1751447458487,-1477.74851958,0.00017014,2]
[369058676,1751447458495,-502.21694655,0.00017021,2]
[369058677,1751447458505,-300.0,0.00017049,2]
[369058678,1751447458514,-342.97251366,0.00017065,2]
[369058679,1751447458524,-215.0738,0.00017065,2]
[369058680,1751447458533,-151.0,0.00017069,2]
[369058681,1751447458543,-490.0,0.00017083,2]
[369058682,1751447458552,-490.0,0.00017083,2]
[369058683,1751447458561,-490.0,0.00017083,2]
[369058684,1751447458570,-1069.6,0.00017088,2]
[369058685,1751447458580,-566.69677681,0.00017088,2]
[369058686,1751447458590,-151.0,0.00017089,2]
[369058687,1751447458599,-151.0,0.0001709,2]
[369058688,1751447458608,-151.0,0.0001709,2]
[369058689,1751447458618,-151.0,0.0001709,2]
[369058690,1751447458627,-675.22214033,0.00017095,2]
[369058691,1751447458636,-208.9,0.00017148,2]
[369058692,1751447458646,-151.0,0.0001716,2]
[369058693,1751447458655,-151.0,0.0001716,2]
[369058694,1751447458665,-156.513756,0.0001716,2]
[369058695,1751447458675,-926.35508238,0.000172,2]
[369058696,1751447458687,-1073.64491762,0.000172,2]
[369058697,1751447458696,-5.28584018,0.000172,2]
[369058698,1751447458732,-145.71415982,0.000172,2]
[369058699,1751447458742,-1069.6,0.00017259,2]
[369058700,1751447458751,-1069.6,0.00017259,2]
[369058701,1751447458761,-1069.6,0.00017259,2]
[369058702,1751447458771,-1069.6,0.00017259,2]
[369058703,1751447458780,-136.89469388,0.00017259,2]
[369058704,1751447458811,-932.70530612,0.00017259,2]
[369058705,1751447458820,-1069.6,0.00017259,2]
[369058706,1751447458830,-698.64193356,0.00017259,2]
[369058707,1751447459971,-460.0,0.00016535,2]
[369058708,1751447459983,-460.0,0.00016535,2]
[369058709,1751447459992,-530.0,0.00016535,2]
[369058710,1751447460001,-753.0,0.00016895,2]
[369058711,1751447460010,-370.95806644,0.00017259,2]
[369058712,1751447460020,-1361.192466,0.00017259,2]
[369058713,1751447460029,-1361.192466,0.00017259,2]
[369058714,1751447460039,-732.75,0.00017259,2]
[369058715,1751447460048,-732.75,0.00017259,2]
[369058716,1751447460057,-732.75,0.00017259,2]
[369058717,1751447460067,-197.015284,0.00017259,2]
[369058718,1751447460077,-197.015284,0.00017259,2]
[369058719,1751447460086,-622.66,0.00017259,2]
[369058720,1751447460095,-622.66,0.00017259,2]
[369058721,1751447460104,-622.66,0.00017259,2]
[369058722,1751447460299,-300.0,0.00017259,2]
[369058723,1751447460319,-300.0,0.00017259,2]
[369058724,1751447460328,-1000.0,0.0001726,2]
[369058725,1751447460337,-500.0,0.0001726,2]
[369058726,1751447460347,-1615.0,0.0001726,2]
[369058727,1751447460357,-643.0,0.0001726,2]
[369058728,1751447460366,-150.0,0.0001726,2]
[369058729,1751447460375,-500.0,0.0001726,2]
[369058730,1751447460384,-200.0,0.0001726,2]
[369058731,1751447460394,-500.0,0.0001726,2]
[369058732,1751447460403,-159.532525,0.0001726,2]
[369058733,1751447460412,-151.0,0.0001726,2]
[369058734,1751447460422,-151.0,0.0001726,2]
[369058735,1751447460432,-151.0,0.0001726,2]
[369058736,1751447460442,-490.0,0.0001726,2]
[369058737,1751447460451,-490.0,0.0001726,2]
[369058738,1751447460460,-490.0,0.0001726,2]
[369058739,1751447460471,-490.0,0.0001726,2]
[369058740,1751447460480,-490.0,0.0001726,2]
[369058741,1751447460490,-490.0,0.0001726,2]
[369058742,1751447460500,-490.0,0.0001726,2]
[369058743,1751447460509,-490.0,0.0001726,2]
[369058744,1751447460518,-490.0,0.0001726,2]
[369058745,1751447460527,-490.0,0.0001726,2]
[369058746,1751447460536,-490.0,0.0001726,2]
[369058747,1751447460545,-490.0,0.0001726,2]
[369058748,1751447460554,-490.0,0.0001726,2]
[369058749,1751447460564,-554.45,0.0001726,2]
[369058750,1751447460573,-500.0,0.0001726,2]
[369058751,1751447460582,-490.0,0.0001726,2]
[369058752,1751447460591,-620.52,0.0001726,2]
[369058753,1751447460600,-490.0,0.0001726,2]
[369058754,1751447460609,-233.335586,0.0001726,2]
[369058755,1751447460618,-490.0,0.0001726,2]
[369058756,1751447460628,-490.0,0.0001726,2]
[369058757,1751447460637,-490.0,0.0001726,2]
[369058758,1751447460646,-490.0,0.0001726,2]
[369058759,1751447460655,-490.0,0.0001726,2]
[369058760,1751447460665,-490.0,0.0001726,2]
[369058761,1751447460675,-490.0,0.0001726,2]
[369058762,1751447460684,-490.0,0.0001726,2]
[369058763,1751447460693,-490.0,0.0001726,2]
[369058764,1751447460703,-490.0,0.0001726,2]
[369058765,1751447460712,-239.64797207,0.0001726,2]
[369058766,1751447460722,-490.0,0.0001726,2]
[369058767,1751447460732,-490.0,0.0001726,2]
[369058768,1751447460741,-490.0,0.0001726,2]
[369058769,1751447460751,-490.0,0.0001726,2]
[369058770,1751447460760,-832.75,0.0001726,2]
[369058771,1751447460770,-490.0,0.0001726,2]
[369058772,1751447460780,-490.0,0.0001726,2]
[369058773,1751447460789,-490.0,0.0001726,2]
[369058774,1751447460798,-151.0,0.0001726,2]
[369058775,1751447460809,-151.0,0.0001726,2]
[369058776,1751447460818,-151.0,0.0001726,2]
[369058777,1751447460827,-490.0,0.0001726,2]
[369058778,1751447460837,-490.0,0.0001726,2]
[369058779,1751447460847,-831.02,0.0001726,2]
[369058780,1751447460857,-563.64,0.0001726,2]
[369058781,1751447460867,-490.0,0.0001726,2]
[369058782,1751447460877,-490.0,0.0001726,2]
[369058783,1751447460887,-490.0,0.0001726,2]
[369058784,1751447460896,-151.0,0.0001726,2]
[369058785,1751447460906,-186.031376,0.0001726,2]
[369058786,1751447460916,-151.0,0.0001726,2]
[369058787,1751447460925,-284.501232,0.0001726,2]
[369058788,1751447460934,-151.0,0.0001726,2]
[369058789,1751447460944,-190.18076,0.0001726,2]
[369058790,1751447460953,-164.379698,0.0001726,2]
[369058791,1751447460962,-164.379698,0.0001726,2]
[369058792,1751447460971,-164.379698,0.0001726,2]
[369058793,1751447460980,-164.379697,0.0001726,2]
[369058794,1751447460989,-151.0,0.0001726,2]
[369058795,1751447460998,-151.0,0.0001726,2]
[369058796,1751447461008,-215.46196,0.0001726,2]
[369058797,1751447461017,-215.46196,0.0001726,2]
[369058798,1751447461027,-215.46196,0.0001726,2]
[369058799,1751447461036,-215.461968,0.0001726,2]
[369058800,1751447461045,-151.0,0.0001726,2]
[369058801,1751447461054,-187.77334349,0.0001726,2]
[369058802,1751447461227,-53.97918551,0.0001726,2]
[369058803,1751447461237,-151.0,0.0001726,2]
[369058804,1751447461247,-220.339884,0.0001726,2]
[369058805,1751447461256,-1361.192466,0.0001726,2]
[369058806,1751447461265,-1361.192466,0.0001726,2]
[369058807,1751447461275,-151.0,0.0001726,2]
[369058808,1751447461286,-151.0,0.0001726,2]
[369058809,1751447461295,-151.0,0.0001726,2]
[369058810,1751447461305,-338.437699,0.0001726,2]
[369058811,1751447461314,-338.437699,0.0001726,2]
[369058812,1751447461325,-151.0,0.0001726,2]
[369058813,1751447461335,-152.671124,0.0001726,2]
[369058814,1751447461345,-3430.582997,0.0001726,2]
[369058815,1751447461355,-3430.582997,0.0001726,2]
[369058816,1751447461364,-151.0,0.0001726,2]
[369058817,1751447461373,-151.0,0.0001726,2]
[369058818,1751447461383,-172.935231,0.0001726,2]
[369058819,1751447461392,-151.0,0.0001726,2]
[369058820,1751447461402,-151.0,0.0001726,2]
[369058821,1751447461411,-208.9,0.00017313,2]
[369058822,1751447461421,-1000.0,0.00017321,2]
[369058823,1751447461430,-1000.0,0.00017321,2]
[369058824,1751447461440,-1000.0,0.00017321,2]
[369058825,1751447461450,-500.23376414,0.00017321,2]
[369058826,1751447461463,-1000.99647375,0.00017321,2]
[369058827,1751447461472,-1000.0,0.00017321,2]